[Event "Titled Tuesday Blitz February 14 Late 2023"]
[White "Marcolino, Daniel Mattos"]
[Black "Leonte, Sebastian-Marian"]
[WhiteFideId "2106841"]
[BlackFideId "1268767"]
[WhiteElo "2006"]
[BlackElo "1279"]
[Result "0-1"]
[Round "10"]
[TimeControl "180+2"]
[Date "2023.02.14"]
[WhiteClock "0:00:02"]
[BlackClock "0:00:02"]

1. d4 {[%clk 0:03:00]}  Nf6 {[%clk 0:02:59]} 2. Nf3 {[%clk 0:03:00]}  e6 {[%clk 0:02:57]} 3. g3 {[%clk 0:03:01]}  b5 {[%clk 0:02:57]} 4. Bg2 {[%clk 0:03:01]}  Bb7 {[%clk 0:02:57]} 5. O-O {[%clk 0:03:01]}  c5 {[%clk 0:02:57]} 6. dxc5 {[%clk 0:03:01]}  Bxc5 {[%clk 0:02:57]} 7. c3 {[%clk 0:02:56]}  O-O {[%clk 0:02:55]} 8. Qd3 {[%clk 0:02:56]}  a6 {[%clk 0:02:48]} 9. Bg5 {[%clk 0:02:46]}  Ra7 {[%clk 0:01:41]} 10. Nbd2 {[%clk 0:02:42]}  Be7 {[%clk 0:01:36]} 11. a4 {[%clk 0:02:40]}  bxa4 {[%clk 0:01:30]} 12. Rxa4 {[%clk 0:02:37]}  Bc6 {[%clk 0:01:27]} 13. Rh4 {[%clk 0:02:28]}  g6 {[%clk 0:01:14]} 14. Qe3 {[%clk 0:01:47]}  Rb7 {[%clk 0:01:05]} 15. Bxf6 {[%clk 0:01:46]}  Bxf6 {[%clk 0:01:03]} 16. Qh6 {[%clk 0:01:47]}  Bxh4 {[%clk 0:01:01]} 17. Nxh4 {[%clk 0:01:44]}  Bxg2 {[%clk 0:00:55]} 18. Nxg2 {[%clk 0:01:45]}  Rxb2 {[%clk 0:00:52]} 19. Ne4 {[%clk 0:01:45]}  f5 {[%clk 0:00:39]} 20. Qc1 {[%clk 0:00:32]}  Rxe2 {[%clk 0:00:30]} 21. Nd6 {[%clk 0:00:32]}  Qb6 {[%clk 0:00:23]} 22. Nf4 {[%clk 0:00:32]}  Rb2 {[%clk 0:00:17]} 23. Nc4 {[%clk 0:00:31]}  Qc7 {[%clk 0:00:11]} 24. Nxb2 {[%clk 0:00:31]}  Nc6 {[%clk 0:00:10]} 25. Qd2 {[%clk 0:00:31]}  Ne5 {[%clk 0:00:09]} 26. Kg2 {[%clk 0:00:28]}  Rc8 {[%clk 0:00:08]} 27. f3 {[%clk 0:00:23]}  Qxc3 {[%clk 0:00:08]} 28. Qxc3 {[%clk 0:00:23]}  Rxc3 {[%clk 0:00:09]} 29. Rf2 {[%clk 0:00:23]}  a5 {[%clk 0:00:07]} 30. Nd1 {[%clk 0:00:22]}  Rc5 {[%clk 0:00:05]} 31. Ra2 {[%clk 0:00:20]}  Kf7 {[%clk 0:00:05]} 32. Nb2 {[%clk 0:00:17]}  Rc2+ {[%clk 0:00:04]} 33. Kh3 {[%clk 0:00:18]}  g5 {[%clk 0:00:04]} 34. Nh5 {[%clk 0:00:10]}  g4+ {[%clk 0:00:04]} 35. fxg4 {[%clk 0:00:10]}  fxg4+ {[%clk 0:00:04]} 36. Kh4 {[%clk 0:00:10]}  Rxh2+ {[%clk 0:00:04]} 37. Kg5 {[%clk 0:00:10]}  h6+ {[%clk 0:00:04]} 38. Kf4 {[%clk 0:00:09]}  Rxh5 {[%clk 0:00:03]} 39. Nd1 {[%clk 0:00:08]}  Rf5+ {[%clk 0:00:03]} 40. Ke3 {[%clk 0:00:08]}  Nc6 {[%clk 0:00:04]} 41. Ra4 {[%clk 0:00:07]}  Re5+ {[%clk 0:00:04]} 42. Kf4 {[%clk 0:00:07]}  h5 {[%clk 0:00:05]} 43. Ne3 {[%clk 0:00:07]}  Rc5 {[%clk 0:00:04]} 44. Nc4 {[%clk 0:00:06]}  Kf6 {[%clk 0:00:04]} 45. Nd6 {[%clk 0:00:04]}  Rd5 {[%clk 0:00:03]} 46. Ne4+ {[%clk 0:00:05]}  Kg6 {[%clk 0:00:03]} 47. Nc3 {[%clk 0:00:02]}  Rd4+ {[%clk 0:00:03]} 48. Rxd4 {[%clk 0:00:02]}  Nxd4 {[%clk 0:00:04]} 49. Ke4 {[%clk 0:00:03]}  Nc6 {[%clk 0:00:04]} 50. Kd3 {[%clk 0:00:02]}  d5 {[%clk 0:00:04]} 51. Na2 {[%clk 0:00:02]}  Nb4+ {[%clk 0:00:02]} 0-1


[Site "https://www.chess.com"]

[Event "Titled Tuesday Blitz February 14 Late 2023"]
[White "Bortnyk, Olexandr"]
[Black "Nakamura, Hikaru"]
[WhiteFideId "14120828"]
[BlackFideId "2016192"]
[WhiteElo "2605"]
[BlackElo "2775"]
[Result "0-1"]
[Round "11"]
[TimeControl "180+2"]
[Date "2023.02.14"]
[WhiteClock "0:00:01"]
[BlackClock "0:00:47"]

1. d4 {[%clk 0:03:00]}  Nf6 {[%clk 0:02:58]} 2. Nc3 {[%clk 0:03:00]}  d5 {[%clk 0:02:54]} 3. Bf4 {[%clk 0:03:00]}  e6 {[%clk 0:02:53]} 4. Nb5 {[%clk 0:02:58]}  Bb4+ {[%clk 0:02:47]} 5. c3 {[%clk 0:02:58]}  Ba5 {[%clk 0:02:48]} 6. a4 {[%clk 0:02:58]}  a6 {[%clk 0:02:40]} 7. b4 {[%clk 0:02:58]}  Nh5 {[%clk 0:02:26]} 8. Bd2 {[%clk 0:02:35]}  Bb6 {[%clk 0:02:22]} 9. a5 {[%clk 0:02:33]}  axb5 {[%clk 0:02:12]} 10. axb6 {[%clk 0:02:34]}  Rxa1 {[%clk 0:02:12]} 11. Qxa1 {[%clk 0:02:35]}  c6 {[%clk 0:02:12]} 12. g4 {[%clk 0:02:10]}  Nf6 {[%clk 0:02:12]} 13. Bf4 {[%clk 0:02:11]}  Na6 {[%clk 0:02:07]} 14. Qa5 {[%clk 0:02:04]}  Nd7 {[%clk 0:02:07]} 15. Bc7 {[%clk 0:02:00]}  Qg5 {[%clk 0:02:03]} 16. Qa1 {[%clk 0:01:32]}  Nxc7 {[%clk 0:02:00]} 17. bxc7 {[%clk 0:01:33]}  Qf4 {[%clk 0:02:00]} 18. Nf3 {[%clk 0:01:25]}  Qxc7 {[%clk 0:02:00]} 19. e3 {[%clk 0:01:24]}  e5 {[%clk 0:01:59]} 20. g5 {[%clk 0:01:19]}  e4 {[%clk 0:01:55]} 21. Nd2 {[%clk 0:01:19]}  O-O {[%clk 0:01:56]} 22. h4 {[%clk 0:01:18]}  Nb6 {[%clk 0:01:55]} 23. Bh3 {[%clk 0:01:11]}  Bxh3 {[%clk 0:01:54]} 24. Rxh3 {[%clk 0:01:12]}  Ra8 {[%clk 0:01:54]} 25. Qd1 {[%clk 0:01:11]}  Qd7 {[%clk 0:01:54]} 26. Rg3 {[%clk 0:01:07]}  Nc8 {[%clk 0:01:50]} 27. h5 {[%clk 0:01:03]}  Nd6 {[%clk 0:01:49]} 28. Kf1 {[%clk 0:01:02]}  Ra2 {[%clk 0:01:47]} 29. g6 {[%clk 0:00:42]}  fxg6 {[%clk 0:01:42]} 30. hxg6 {[%clk 0:00:43]}  h6 {[%clk 0:01:42]} 31. Kg1 {[%clk 0:00:38]}  Qf5 {[%clk 0:01:41]} 32. Rg2 {[%clk 0:00:39]}  Qf6 {[%clk 0:01:31]} 33. Nf1 {[%clk 0:00:35]}  Nf5 {[%clk 0:01:30]} 34. Qg4 {[%clk 0:00:21]}  Ra8 {[%clk 0:01:03]} 35. Rh2 {[%clk 0:00:17]}  Rf8 {[%clk 0:01:01]} 36. Ng3 {[%clk 0:00:16]}  Ne7 {[%clk 0:01:01]} 37. Qd7 {[%clk 0:00:15]}  Nxg6 {[%clk 0:00:57]} 38. Rg2 {[%clk 0:00:12]}  Qe7 {[%clk 0:00:46]} 39. Qxe7 {[%clk 0:00:05]}  Nxe7 {[%clk 0:00:47]} 40. Nh5 {[%clk 0:00:03]}  g5 {[%clk 0:00:46]} 41. Nf4 {[%clk 0:00:03]}  Kf7 {[%clk 0:00:46]} 42. Ne2 {[%clk 0:00:03]}  Nf5 {[%clk 0:00:46]} 43. Rh2 {[%clk 0:00:02]}  Nh4 {[%clk 0:00:46]} 44. Kf1 {[%clk 0:00:01]}  Ra8 {[%clk 0:00:47]} 0-1


[Site "https://www.chess.com"]

[Event "Titled Tuesday Blitz February 14 Late 2023"]
[White "Andreikin, Dmitry"]
[Black "Bluebaum, Matthias"]
[WhiteFideId "4158814"]
[BlackFideId "24651516"]
[WhiteElo "2729"]
[BlackElo "2669"]
[Result "1-0"]
[Round "11"]
[TimeControl "180+2"]
[Date "2023.02.14"]
[WhiteClock "0:01:10"]
[BlackClock "0:00:14"]

1. c4 {[%clk 0:03:00]}  e6 {[%clk 0:02:59]} 2. Nc3 {[%clk 0:03:00]}  d5 {[%clk 0:03:00]} 3. d4 {[%clk 0:02:59]}  Bb4 {[%clk 0:03:00]} 4. e3 {[%clk 0:02:56]}  Nf6 {[%clk 0:03:01]} 5. Nf3 {[%clk 0:02:56]}  O-O {[%clk 0:03:01]} 6. Bd2 {[%clk 0:02:56]}  b6 {[%clk 0:03:00]} 7. cxd5 {[%clk 0:02:49]}  exd5 {[%clk 0:03:01]} 8. Qc2 {[%clk 0:02:47]}  Be7 {[%clk 0:02:58]} 9. g3 {[%clk 0:02:36]}  c5 {[%clk 0:02:50]} 10. Ne5 {[%clk 0:02:36]}  Bd6 {[%clk 0:02:41]} 11. Bg2 {[%clk 0:02:33]}  Bb7 {[%clk 0:02:03]} 12. O-O {[%clk 0:02:29]}  Nbd7 {[%clk 0:02:02]} 13. f4 {[%clk 0:02:27]}  Rc8 {[%clk 0:01:53]} 14. Qf5 {[%clk 0:02:25]}  Rc7 {[%clk 0:01:37]} 15. Nb5 {[%clk 0:02:22]}  Bxe5 {[%clk 0:01:17]} 16. fxe5 {[%clk 0:02:16]}  Ne4 {[%clk 0:01:16]} 17. Bxe4 {[%clk 0:01:49]}  dxe4 {[%clk 0:01:17]} 18. Nxc7 {[%clk 0:01:49]}  Qxc7 {[%clk 0:01:18]} 19. e6 {[%clk 0:01:49]}  Nf6 {[%clk 0:01:16]} 20. dxc5 {[%clk 0:01:48]}  bxc5 {[%clk 0:00:28]} 21. Bc3 {[%clk 0:01:40]}  Nd5 {[%clk 0:00:28]} 22. exf7+ {[%clk 0:01:26]}  Qxf7 {[%clk 0:00:27]} 23. Qe5 {[%clk 0:01:18]}  Qe7 {[%clk 0:00:21]} 24. Rxf8+ {[%clk 0:01:15]}  Qxf8 {[%clk 0:00:21]} 25. Rf1 {[%clk 0:01:15]}  Nf6 {[%clk 0:00:13]} 26. Qe6+ {[%clk 0:01:12]}  Qf7 {[%clk 0:00:13]} 27. Qxf7+ {[%clk 0:01:12]}  Kxf7 {[%clk 0:00:14]} 28. Bxf6 {[%clk 0:01:12]}  gxf6 {[%clk 0:00:15]} 29. Rf5 {[%clk 0:01:12]}  Ke6 {[%clk 0:00:14]} 30. Rxc5 {[%clk 0:01:12]}  Bd5 {[%clk 0:00:14]} 31. Rc7 {[%clk 0:01:11]}  Bxa2 {[%clk 0:00:14]} 32. Rxa7 {[%clk 0:01:11]}  Bb1 {[%clk 0:00:13]} 33. Rxh7 {[%clk 0:01:10]}  Kd5 {[%clk 0:00:10]} 34. Kf2 {[%clk 0:01:10]}  Kc4 {[%clk 0:00:10]} 35. h4 {[%clk 0:01:10]}  Kd3 {[%clk 0:00:11]} 36. h5 {[%clk 0:01:10]}  Kc2 {[%clk 0:00:11]} 37. h6 {[%clk 0:01:10]}  Ba2 {[%clk 0:00:12]} 38. Rg7 {[%clk 0:01:10]}  Kxb2 {[%clk 0:00:13]} 39. h7 {[%clk 0:01:10]}  f5 {[%clk 0:00:13]} 40. h8=Q {[%clk 0:01:11]}  Kc2 {[%clk 0:00:14]} 41. Rc7+ {[%clk 0:01:11]}  Kb1 {[%clk 0:00:14]} 42. Qc3 {[%clk 0:01:09]}  Bb3 {[%clk 0:00:14]} 43. Qxb3+ {[%clk 0:01:09]}  Ka1 {[%clk 0:00:14]} 44. Ra7# {[%clk 0:01:10]} 1-0


[Site "https://www.chess.com"]

[Event "Titled Tuesday Blitz February 14 Late 2023"]
[White "Deac, Bogdan-Daniel"]
[Black "Sarana, Alexey"]
[WhiteFideId "1226380"]
[BlackFideId "24133795"]
[WhiteElo "2700"]
[BlackElo "2685"]
[Result "1-0"]
[Round "11"]
[TimeControl "180+2"]
[Date "2023.02.14"]
[WhiteClock "0:00:04"]
[BlackClock "0:00:02"]

1. c4 {[%clk 0:03:00]}  e6 {[%clk 0:02:58]} 2. g3 {[%clk 0:03:01]}  d5 {[%clk 0:02:58]} 3. Bg2 {[%clk 0:03:01]}  Nf6 {[%clk 0:02:58]} 4. Nf3 {[%clk 0:03:02]}  dxc4 {[%clk 0:02:58]} 5. Qa4+ {[%clk 0:03:01]}  Nbd7 {[%clk 0:02:56]} 6. Qxc4 {[%clk 0:03:01]}  a6 {[%clk 0:02:56]} 7. Qc2 {[%clk 0:03:02]}  c5 {[%clk 0:02:52]} 8. d4 {[%clk 0:03:01]}  Qc7 {[%clk 0:02:46]} 9. O-O {[%clk 0:02:56]}  b6 {[%clk 0:02:45]} 10. Bf4 {[%clk 0:02:48]}  Qa7 {[%clk 0:02:41]} 11. e4 {[%clk 0:02:37]}  Bb7 {[%clk 0:02:38]} 12. d5 {[%clk 0:02:32]}  exd5 {[%clk 0:02:10]} 13. exd5 {[%clk 0:02:33]}  Nxd5 {[%clk 0:02:10]} 14. Re1+ {[%clk 0:02:32]}  Be7 {[%clk 0:02:01]} 15. Bd6 {[%clk 0:02:32]}  Nf8 {[%clk 0:01:54]} 16. Ng5 {[%clk 0:01:57]}  Ng6 {[%clk 0:01:17]} 17. Nc3 {[%clk 0:01:44]}  Nxc3 {[%clk 0:01:14]} 18. Qxc3 {[%clk 0:01:28]}  Bxg2 {[%clk 0:01:10]} 19. Qxg7 {[%clk 0:01:05]}  O-O-O {[%clk 0:01:04]} 20. Bxe7 {[%clk 0:00:57]}  Nxe7 {[%clk 0:01:02]} 21. Kxg2 {[%clk 0:00:43]}  Qb7+ {[%clk 0:00:52]} 22. Kg1 {[%clk 0:00:42]}  Nc6 {[%clk 0:00:37]} 23. Qxf7 {[%clk 0:00:26]}  Rd7 {[%clk 0:00:35]} 24. Re8+ {[%clk 0:00:21]}  Rxe8 {[%clk 0:00:31]} 25. Qxe8+ {[%clk 0:00:21]}  Rd8 {[%clk 0:00:32]} 26. Qe6+ {[%clk 0:00:20]}  Kb8 {[%clk 0:00:31]} 27. Qe4 {[%clk 0:00:20]}  h6 {[%clk 0:00:18]} 28. Nf3 {[%clk 0:00:21]}  b5 {[%clk 0:00:12]} 29. b3 {[%clk 0:00:20]}  Nb4 {[%clk 0:00:09]} 30. Qe5+ {[%clk 0:00:19]}  Qc7 {[%clk 0:00:06]} 31. Qf6 {[%clk 0:00:10]}  Rd6 {[%clk 0:00:06]} 32. Qf8+ {[%clk 0:00:10]}  Kb7 {[%clk 0:00:06]} 33. Re1 {[%clk 0:00:10]}  Rd7 {[%clk 0:00:02]} 34. Re8 {[%clk 0:00:09]}  Kb6 {[%clk 0:00:01]} 35. Ne5 {[%clk 0:00:09]}  Rd1+ {[%clk 0:00:01]} 36. Kg2 {[%clk 0:00:10]}  Qb7+ {[%clk 0:00:02]} 37. f3 {[%clk 0:00:09]}  Rd2+ {[%clk 0:00:02]} 38. Kh3 {[%clk 0:00:09]}  Qc7 {[%clk 0:00:03]} 39. a3 {[%clk 0:00:09]}  Nd5 {[%clk 0:00:02]} 40. Re6+ {[%clk 0:00:09]}  Ka5 {[%clk 0:00:02]} 41. Nc6+ {[%clk 0:00:09]}  Kb6 {[%clk 0:00:03]} 42. Ne5+ {[%clk 0:00:05]}  Ka5 {[%clk 0:00:03]} 43. Qa8 {[%clk 0:00:05]}  Ne7 {[%clk 0:00:03]} 44. Rxe7 {[%clk 0:00:05]}  Qd6 {[%clk 0:00:02]} 45. Nc6+ {[%clk 0:00:04]}  Kb6 {[%clk 0:00:02]} 46. Qb7# {[%clk 0:00:04]} 1-0


[Site "https://www.chess.com"]

[Event "Titled Tuesday Blitz February 14 Late 2023"]
[White "Paravyan, David"]
[Black "Pichot, Alan"]
[WhiteFideId "4194985"]
[BlackFideId "110973"]
[WhiteElo "2601"]
[BlackElo "2638"]
[Result "1-0"]
[Round "11"]
[TimeControl "180+2"]
[Date "2023.02.14"]
[WhiteClock "0:00:41"]
[BlackClock "0:00:02"]

1. c4 {[%clk 0:03:00]}  Nf6 {[%clk 0:02:58]} 2. Nc3 {[%clk 0:03:01]}  g6 {[%clk 0:02:56]} 3. e4 {[%clk 0:03:01]}  d6 {[%clk 0:02:57]} 4. d4 {[%clk 0:03:01]}  Bg7 {[%clk 0:02:57]} 5. Be2 {[%clk 0:03:02]}  O-O {[%clk 0:02:58]} 6. Nf3 {[%clk 0:03:03]}  Bg4 {[%clk 0:02:58]} 7. Be3 {[%clk 0:03:02]}  Nfd7 {[%clk 0:02:53]} 8. Rb1 {[%clk 0:03:03]}  c5 {[%clk 0:02:51]} 9. d5 {[%clk 0:03:03]}  Bxf3 {[%clk 0:02:51]} 10. Bxf3 {[%clk 0:03:04]}  Na6 {[%clk 0:02:52]} 11. h4 {[%clk 0:03:03]}  h6 {[%clk 0:02:35]} 12. Qd2 {[%clk 0:03:01]}  Kh7 {[%clk 0:02:35]} 13. Be2 {[%clk 0:02:59]}  Nc7 {[%clk 0:02:32]} 14. f4 {[%clk 0:02:54]}  e5 {[%clk 0:02:13]} 15. g3 {[%clk 0:02:38]}  h5 {[%clk 0:02:10]} 16. f5 {[%clk 0:02:36]}  Nf6 {[%clk 0:02:04]} 17. Bg5 {[%clk 0:02:30]}  Qd7 {[%clk 0:02:02]} 18. Bxf6 {[%clk 0:02:26]}  Bxf6 {[%clk 0:02:02]} 19. g4 {[%clk 0:02:27]}  gxf5 {[%clk 0:01:48]} 20. g5 {[%clk 0:02:23]}  Bg7 {[%clk 0:01:46]} 21. exf5 {[%clk 0:02:10]}  Qxf5 {[%clk 0:01:47]} 22. Ne4 {[%clk 0:02:11]}  Kh8 {[%clk 0:01:41]} 23. Qd3 {[%clk 0:02:06]}  b5 {[%clk 0:01:19]} 24. b3 {[%clk 0:02:00]}  bxc4 {[%clk 0:01:18]} 25. bxc4 {[%clk 0:02:01]}  Rab8 {[%clk 0:01:19]} 26. Kd2 {[%clk 0:02:02]}  Qf4+ {[%clk 0:01:16]} 27. Kc2 {[%clk 0:01:58]}  Rxb1 {[%clk 0:01:05]} 28. Rxb1 {[%clk 0:01:57]}  Qxh4 {[%clk 0:01:05]} 29. Qf3 {[%clk 0:01:54]}  Kg8 {[%clk 0:00:44]} 30. Rh1 {[%clk 0:01:53]}  Qf4 {[%clk 0:00:44]} 31. Nxd6 {[%clk 0:01:18]}  Rb8 {[%clk 0:00:32]} 32. Qxf4 {[%clk 0:00:58]}  exf4 {[%clk 0:00:32]} 33. Nf5 {[%clk 0:00:58]}  Rb2+ {[%clk 0:00:31]} 34. Kd3 {[%clk 0:00:59]}  Rxa2 {[%clk 0:00:09]} 35. Bxh5 {[%clk 0:00:57]}  a5 {[%clk 0:00:04]} 36. Nh6+ {[%clk 0:00:45]}  Bxh6 {[%clk 0:00:04]} 37. gxh6 {[%clk 0:00:45]}  Ra3+ {[%clk 0:00:03]} 38. Ke4 {[%clk 0:00:45]}  Kh7 {[%clk 0:00:02]} 39. Bxf7 {[%clk 0:00:43]}  f3 {[%clk 0:00:02]} 40. d6 {[%clk 0:00:42]}  Na8 {[%clk 0:00:02]} 41. d7 {[%clk 0:00:41]} 1-0


[Site "https://www.chess.com"]

[Event "Titled Tuesday Blitz February 14 Late 2023"]
[White "Perez Ponsa, Federico"]
[Black "Urazayev, Arystanbek"]
[WhiteFideId "117927"]
[BlackFideId "13709810"]
[WhiteElo "2532"]
[BlackElo "2460"]
[Result "1-0"]
[Round "11"]
[TimeControl "180+2"]
[Date "2023.02.14"]
[WhiteClock "0:01:15"]
[BlackClock "0:01:17"]

1. e4 {[%clk 0:02:54]}  c5 {[%clk 0:03:00]} 2. Nf3 {[%clk 0:02:55]}  e6 {[%clk 0:03:00]} 3. d4 {[%clk 0:02:55]}  cxd4 {[%clk 0:03:01]} 4. Nxd4 {[%clk 0:02:56]}  Nf6 {[%clk 0:03:02]} 5. Nc3 {[%clk 0:02:57]}  Nc6 {[%clk 0:03:03]} 6. Ndb5 {[%clk 0:02:51]}  Bc5 {[%clk 0:03:02]} 7. Nd6+ {[%clk 0:02:50]}  Ke7 {[%clk 0:03:02]} 8. Bf4 {[%clk 0:02:51]}  e5 {[%clk 0:03:02]} 9. Nf5+ {[%clk 0:02:51]}  Kf8 {[%clk 0:03:03]} 10. Bg5 {[%clk 0:02:52]}  Bb4 {[%clk 0:03:03]} 11. Ne3 {[%clk 0:02:24]}  Qa5 {[%clk 0:03:02]} 12. Bd3 {[%clk 0:02:12]}  Bxc3+ {[%clk 0:02:52]} 13. bxc3 {[%clk 0:02:13]}  Qxc3+ {[%clk 0:02:52]} 14. Kf1 {[%clk 0:02:14]}  Ne7 {[%clk 0:02:46]} 15. Rb1 {[%clk 0:02:10]}  d6 {[%clk 0:02:38]} 16. Bxf6 {[%clk 0:02:04]}  gxf6 {[%clk 0:02:39]} 17. Bc4 {[%clk 0:02:04]}  Be6 {[%clk 0:02:31]} 18. Bxe6 {[%clk 0:01:59]}  fxe6 {[%clk 0:02:32]} 19. Qxd6 {[%clk 0:01:59]}  Kf7 {[%clk 0:02:23]} 20. Rxb7 {[%clk 0:01:55]}  Rhe8 {[%clk 0:02:23]} 21. g3 {[%clk 0:01:44]}  Rad8 {[%clk 0:02:23]} 22. Rxe7+ {[%clk 0:01:43]}  Rxe7 {[%clk 0:02:06]} 23. Qxd8 {[%clk 0:01:43]}  Qc6 {[%clk 0:02:00]} 24. Qd3 {[%clk 0:01:39]}  Rd7 {[%clk 0:02:00]} 25. Qc4 {[%clk 0:01:39]}  Qb7 {[%clk 0:02:01]} 26. Kg2 {[%clk 0:01:39]}  Rd4 {[%clk 0:02:01]} 27. Qe2 {[%clk 0:01:38]}  Rxe4 {[%clk 0:02:00]} 28. Qf3 {[%clk 0:01:34]}  f5 {[%clk 0:02:00]} 29. Rd1 {[%clk 0:01:31]}  Kf6 {[%clk 0:01:49]} 30. Nc4 {[%clk 0:01:29]}  Qb4 {[%clk 0:01:17]} 31. Nd6 {[%clk 0:01:26]}  Rd4 {[%clk 0:01:18]} 32. c3 {[%clk 0:01:25]}  e4 {[%clk 0:01:17]} 33. Nxe4+ {[%clk 0:01:15]} 1-0


[Site "https://www.chess.com"]

[Event "Titled Tuesday Blitz February 14 Late 2023"]
[White "Chigaev, Maksim"]
[Black "Pakleza, Zbigniew"]
[WhiteFideId "4108116"]
[BlackFideId "1119290"]
[WhiteElo "2628"]
[BlackElo "2494"]
[Result "1-0"]
[Round "11"]
[TimeControl "180+2"]
[Date "2023.02.14"]
[WhiteClock "0:00:33"]
[BlackClock "0:00:03"]

1. Nf3 {[%clk 0:03:00]}  d5 {[%clk 0:03:00]} 2. c4 {[%clk 0:03:01]}  c6 {[%clk 0:03:00]} 3. g3 {[%clk 0:03:01]}  Nf6 {[%clk 0:03:00]} 4. Bg2 {[%clk 0:03:01]}  Bf5 {[%clk 0:03:01]} 5. Qb3 {[%clk 0:03:00]}  Qb6 {[%clk 0:03:01]} 6. d3 {[%clk 0:03:01]}  e6 {[%clk 0:02:58]} 7. Be3 {[%clk 0:03:01]}  Qxb3 {[%clk 0:02:58]} 8. axb3 {[%clk 0:03:02]}  a6 {[%clk 0:02:58]} 9. Bd4 {[%clk 0:02:49]}  Nbd7 {[%clk 0:02:52]} 10. Bc3 {[%clk 0:02:47]}  Be7 {[%clk 0:02:47]} 11. cxd5 {[%clk 0:02:36]}  cxd5 {[%clk 0:02:28]} 12. O-O {[%clk 0:02:33]}  O-O {[%clk 0:02:24]} 13. b4 {[%clk 0:02:33]}  Rfc8 {[%clk 0:02:15]} 14. Nbd2 {[%clk 0:02:33]}  h6 {[%clk 0:02:09]} 15. Nb3 {[%clk 0:02:22]}  Ne8 {[%clk 0:01:58]} 16. Nfd4 {[%clk 0:02:19]}  Bh7 {[%clk 0:01:52]} 17. f4 {[%clk 0:02:20]}  Nd6 {[%clk 0:01:50]} 18. Kf2 {[%clk 0:02:20]}  Rc7 {[%clk 0:01:07]} 19. h3 {[%clk 0:02:17]}  Rac8 {[%clk 0:01:05]} 20. Rfd1 {[%clk 0:02:17]}  g5 {[%clk 0:00:53]} 21. e3 {[%clk 0:02:11]}  gxf4 {[%clk 0:00:35]} 22. gxf4 {[%clk 0:02:09]}  Bg6 {[%clk 0:00:30]} 23. Bf3 {[%clk 0:02:08]}  Bh4+ {[%clk 0:00:29]} 24. Ke2 {[%clk 0:02:08]}  Kh7 {[%clk 0:00:26]} 25. Rg1 {[%clk 0:01:47]}  e5 {[%clk 0:00:22]} 26. fxe5 {[%clk 0:01:42]}  Nxe5 {[%clk 0:00:23]} 27. Rad1 {[%clk 0:01:31]}  Nxf3 {[%clk 0:00:23]} 28. Nxf3 {[%clk 0:01:31]}  Bh5 {[%clk 0:00:22]} 29. Rg7+ {[%clk 0:01:29]}  Kh8 {[%clk 0:00:21]} 30. Rg4+ {[%clk 0:01:29]}  Rxc3 {[%clk 0:00:18]} 31. Rxh4 {[%clk 0:01:00]}  Bxf3+ {[%clk 0:00:15]} 32. Kxf3 {[%clk 0:01:01]}  Rxb3 {[%clk 0:00:16]} 33. Rxh6+ {[%clk 0:01:01]}  Kg7 {[%clk 0:00:16]} 34. Rxd6 {[%clk 0:01:02]}  Rxb4 {[%clk 0:00:10]} 35. Rg1+ {[%clk 0:01:00]}  Kf8 {[%clk 0:00:10]} 36. Rxd5 {[%clk 0:01:00]}  Rxb2 {[%clk 0:00:09]} 37. h4 {[%clk 0:01:01]}  Rc6 {[%clk 0:00:07]} 38. h5 {[%clk 0:00:52]}  Rf6+ {[%clk 0:00:05]} 39. Ke4 {[%clk 0:00:52]}  Rh2 {[%clk 0:00:04]} 40. Kd4 {[%clk 0:00:46]}  b5 {[%clk 0:00:02]} 41. e4 {[%clk 0:00:41]}  Ke7 {[%clk 0:00:02]} 42. Rc1 {[%clk 0:00:39]}  Rd6 {[%clk 0:00:01]} 43. Rc7+ {[%clk 0:00:36]}  Ke6 {[%clk 0:00:01]} 44. Rxd6+ {[%clk 0:00:35]}  Kxd6 {[%clk 0:00:02]} 45. Rxf7 {[%clk 0:00:34]}  Rxh5 {[%clk 0:00:02]} 46. Rf6+ {[%clk 0:00:34]}  Kc7 {[%clk 0:00:03]} 47. Rxa6 {[%clk 0:00:35]}  Kb7 {[%clk 0:00:02]} 48. Ra1 {[%clk 0:00:34]}  Kb6 {[%clk 0:00:02]} 49. Rb1 {[%clk 0:00:34]}  Rh8 {[%clk 0:00:01]} 50. e5 {[%clk 0:00:33]}  Rd8+ {[%clk 0:00:01]} 51. Ke4 {[%clk 0:00:33]}  Kc5 {[%clk 0:00:02]} 52. Rc1+ {[%clk 0:00:33]}  Kb4 {[%clk 0:00:03]} 53. d4 {[%clk 0:00:33]} 1-0


[Site "https://www.chess.com"]

[Event "Titled Tuesday Blitz February 14 Late 2023"]
[White "Jimenez Garcia, Emmanuel"]
[Black "Melkumyan, Hrant"]
[WhiteFideId "6504779"]
[BlackFideId "13302485"]
[WhiteElo "2410"]
[BlackElo "2645"]
[Result "0-1"]
[Round "11"]
[TimeControl "180+2"]
[Date "2023.02.14"]
[WhiteClock "0:00:10"]
[BlackClock "0:01:18"]

1. Nf3 {[%clk 0:03:00]}  c5 {[%clk 0:02:51]} 2. b3 {[%clk 0:02:59]}  d5 {[%clk 0:02:51]} 3. e3 {[%clk 0:02:58]}  a6 {[%clk 0:02:48]} 4. Bb2 {[%clk 0:02:57]}  Nc6 {[%clk 0:02:47]} 5. d4 {[%clk 0:02:57]}  Bg4 {[%clk 0:02:46]} 6. Be2 {[%clk 0:02:57]}  e6 {[%clk 0:02:46]} 7. Nbd2 {[%clk 0:02:54]}  Nge7 {[%clk 0:02:44]} 8. dxc5 {[%clk 0:02:46]}  Nf5 {[%clk 0:02:41]} 9. Nd4 {[%clk 0:02:41]}  Bxe2 {[%clk 0:02:37]} 10. Qxe2 {[%clk 0:02:42]}  Ncxd4 {[%clk 0:02:24]} 11. exd4 {[%clk 0:02:39]}  b6 {[%clk 0:02:25]} 12. b4 {[%clk 0:02:16]}  Be7 {[%clk 0:02:21]} 13. O-O {[%clk 0:02:15]}  O-O {[%clk 0:02:21]} 14. c3 {[%clk 0:02:15]}  a5 {[%clk 0:02:17]} 15. a3 {[%clk 0:02:15]}  Rb8 {[%clk 0:02:10]} 16. Rfb1 {[%clk 0:01:55]}  Qd7 {[%clk 0:02:08]} 17. cxb6 {[%clk 0:01:33]}  Rxb6 {[%clk 0:02:07]} 18. Nb3 {[%clk 0:01:31]}  a4 {[%clk 0:02:02]} 19. Nc5 {[%clk 0:01:30]}  Qc6 {[%clk 0:02:01]} 20. c4 {[%clk 0:01:28]}  Nd6 {[%clk 0:01:51]} 21. b5 {[%clk 0:01:06]}  Qc7 {[%clk 0:01:45]} 22. Nxa4 {[%clk 0:01:07]}  Rbb8 {[%clk 0:01:39]} 23. cxd5 {[%clk 0:01:06]}  exd5 {[%clk 0:01:29]} 24. Nc3 {[%clk 0:00:58]}  Rfe8 {[%clk 0:01:20]} 25. Nxd5 {[%clk 0:00:42]}  Qd7 {[%clk 0:01:20]} 26. a4 {[%clk 0:00:25]}  Bf8 {[%clk 0:01:19]} 27. Qf3 {[%clk 0:00:22]}  Ne4 {[%clk 0:01:19]} 28. Ne3 {[%clk 0:00:16]}  Nd2 {[%clk 0:01:19]} 29. Qc6 {[%clk 0:00:15]}  Qxc6 {[%clk 0:01:18]} 30. bxc6 {[%clk 0:00:16]}  Nxb1 {[%clk 0:01:18]} 31. Rxb1 {[%clk 0:00:17]}  Ba3 {[%clk 0:01:17]} 32. c7 {[%clk 0:00:12]}  Rxb2 {[%clk 0:01:17]} 33. Rxb2 {[%clk 0:00:11]}  Bxb2 {[%clk 0:01:18]} 34. d5 {[%clk 0:00:12]}  Be5 {[%clk 0:01:18]} 35. Nc4 {[%clk 0:00:10]}  Bxc7 {[%clk 0:01:18]} 36. g4 {[%clk 0:00:10]}  Re4 {[%clk 0:01:18]} 37. d6 {[%clk 0:00:10]}  Rxc4 {[%clk 0:01:18]} 38. dxc7 {[%clk 0:00:10]}  Rxc7 {[%clk 0:01:18]} 0-1


[Site "https://www.chess.com"]